bitfinex-derivatives/quotes_BTCF0:USTF0_20250506
["timestamp","ask_amount","ask_price","bid_price","bid_amount"]
[1746524209861,0.1843,94260.0,94259.0,0.2652881]
[1746524212650,0.1843,94260.0,94257.0,0.0332]
[1746524212856,0.1843,94260.0,94259.0,0.2122343]
[1746524213258,0.3965321,94260.0,94259.0,0.2445343]
[1746524214169,0.1843,94260.0,94259.0,0.2445343]
[1746524214468,0.3965321,94260.0,94259.0,0.2445343]
[1746524214659,0.1843,94260.0,94259.0,0.2445343]
[1746524219874,0.1843,94260.0,94259.0,0.2754343]
[1746524226068,0.1843,94260.0,94259.0,0.0323]
[1746524226069,0.7573321,94260.0,94259.0,0.0323]
[1746524226574,0.7573321,94260.0,94259.0,0.2445343]
[1746524229079,0.3965321,94260.0,94259.0,0.2445343]
[1746524229281,0.7573321,94260.0,94259.0,0.2445343]
[1746524231184,0.7573321,94260.0,94259.0,0.2122343]
[1746524231382,0.7573321,94260.0,94257.0,0.2652965]
[1746524231383,0.2122366,94258.0,94257.0,0.2652965]
[1746524232182,0.3302366,94258.0,94257.0,0.2652965]
[1746524240881,0.3928366,94258.0,94257.0,0.2652965]
[1746524242384,0.4235366,94258.0,94257.0,0.2652965]
[1746524248691,0.2122411,94256.0,94255.0,0.0323]
[1746524249093,0.3944411,94256.0,94255.0,0.2445433]
[1746524254898,0.3944411,94256.0,94255.0,0.2752433]
[1746524276806,0.3944411,94256.0,94255.0,0.0323]
[1746524277009,0.2122591,94248.0,94247.0,0.0305]
[1746524277203,0.2122591,94248.0,94247.0,0.2427613]
[1746524277603,0.2751591,94248.0,94247.0,0.2427613]
[1746524286113,0.3931591,94248.0,94247.0,0.2427613]
[1746524288611,0.1809,94248.0,94241.0,0.23773459]
[1746524288814,0.3608,94245.0,94204.0,0.3608]
[1746524289010,0.0530773,94226.0,94208.0,0.0530872]
[1746524289203,0.5731154,94223.0,94213.0,0.2123374]
[1746524289403,0.5731154,94223.0,94221.0,0.00795262]
[1746524289606,0.5731154,94223.0,94214.0,0.0316]
[1746524289607,0.2123334,94215.0,94214.0,0.0316]
[1746524289815,0.2123334,94215.0,94214.0,0.2439357]
[1746524290217,0.5731334,94215.0,94214.0,0.0316]
[1746524290516,0.2123537,94206.0,94205.0,0.21341571]
[1746524290903,0.2439492,94208.0,94207.0,0.2123515]
[1746524291815,0.2439492,94208.0,94206.0,0.0306]
[1746524292118,0.2123537,94206.0,94205.0,0.00106151]
[1746524292525,0.2439537,94206.0,94205.0,0.00106151]
[1746524293118,0.3619537,94206.0,94205.0,0.21341751]
[1746524297017,0.3619537,94206.0,94205.0,0.00106151]
[1746524297916,0.3619537,94206.0,94205.0,0.03196151]
[1746524299225,0.3619537,94206.0,94205.0,0.24431751]
[1746524301119,0.3619537,94206.0,94205.0,0.00106151]
[1746524301317,0.2123582,94204.0,94203.0,0.00159216]
[1746524302015,0.2445582,94204.0,94203.0,0.21395266]
[1746524302222,0.3625582,94204.0,94203.0,0.21395266]
[1746524305627,0.3625582,94204.0,94203.0,0.00159216]
[1746524306721,0.3625582,94204.0,94203.0,0.21395266]
[1746524307212,0.3625582,94204.0,94203.0,0.00159216]
[1746524309228,0.212365,94201.0,94200.0,0.1]
[1746524309424,0.276405,94201.0,94200.0,0.1]
[1746524310224,0.394405,94201.0,94200.0,0.1]
[1746524311024,0.394405,94201.0,94200.0,0.3123673]
[1746524312038,0.394405,94201.0,94200.0,0.1]
[1746524312929,0.755205,94201.0,94200.0,0.1]
[1746524313131,0.755205,94201.0,94200.0,0.1325]
[1746524314524,0.755205,94201.0,94200.0,0.3448673]
[1746524318735,0.755205,94201.0,94200.0,0.1325]
[1746524319235,0.755205,94201.0,94200.0,0.3448673]
[1746524322439,0.817905,94201.0,94200.0,0.3448673]
[1746524322639,0.817905,94201.0,94200.0,0.1325]
[1746524322832,0.851005,94201.0,94200.0,0.1325]
[1746524323239,0.851005,94201.0,94200.0,0.3448673]
[1746524324539,0.851005,94201.0,94200.0,0.1325]
[1746524326738,0.951005,94201.0,94200.0,0.1325]
[1746524326943,0.2123875,94191.0,94190.0,0.2654823]
[1746524327545,0.0530931,94198.0,94197.0,0.2654598]
[1746524329045,0.2654649,94198.0,94197.0,0.2654598]
[1746524329243,0.2123763,94196.0,94195.0,0.2654711]
[1746524329639,0.2123763,94196.0,94195.0,0.2123767]
[1746524329838,0.212383,94194.0,94193.0,0.2123823]
[1746524330244,0.242883,94194.0,94193.0,0.2123823]
[1746524331143,0.275083,94194.0,94193.0,0.2444823]
[1746524347342,0.0627,94194.0,94193.0,0.2755823]
[1746524347956,0.2750808,94194.0,94193.0,0.2755823]
[1746524348956,0.0627,94194.0,94193.0,0.2755823]
[1746524349760,0.2750808,94194.0,94193.0,0.2755823]
[1746524356268,0.2750808,94194.0,94193.0,0.2444823]
[1746524359066,0.2750808,94194.0,94193.0,0.2776823]
[1746524360661,0.2445808,94194.0,94193.0,0.2776823]
[1746524363073,0.2777808,94194.0,94193.0,0.2776823]
[1746524363871,0.0530932,94198.0,94193.0,0.2776823]
[1746524363872,0.2123692,94200.0,94199.0,0.2123695]
[1746524364770,0.2123692,94200.0,94199.0,0.2770695]
[1746524365271,0.2760692,94200.0,94199.0,0.2770695]
[1746524369069,0.2760692,94200.0,94199.0,0.2442695]
[1746524379882,0.2760692,94200.0,94199.0,0.2123695]
[1746524382373,0.6368692,94200.0,94199.0,0.2123695]
[1746524383292,0.2760692,94200.0,94199.0,0.2123695]
[1746524383474,0.6368692,94200.0,94199.0,0.2123695]
[1746524383676,0.2654697,94198.0,94197.0,0.2123736]
[1746524384078,0.3576697,94198.0,94197.0,0.2123736]
[1746524395590,0.2654754,94196.0,94195.0,0.0530946]
[1746524395982,0.3284754,94196.0,94195.0,0.0530946]
[1746524396186,0.2123808,94194.0,94193.0,0.2123828]
[1746524396386,0.2123808,94194.0,94191.0,0.0530968]
[1746524396387,0.2123943,94188.0,94187.0,0.29808257]
[1746524396987,0.2123943,94188.0,94187.0,0.32858257]
[1746524397382,0.2771943,94188.0,94187.0,0.32858257]
[1746524400483,0.2771943,94188.0,94187.0,0.27548367]
[1746524407287,0.2771943,94188.0,94187.0,0.06309257]
[1746524407492,0.6379943,94188.0,94187.0,0.24448917]
[1746524407684,0.6379943,94188.0,94187.0,0.03209257]
[1746524408190,0.7559943,94188.0,94187.0,0.03209257]
[1746524408382,0.7559943,94188.0,94187.0,0.00159257]
[1746524408698,0.7559943,94188.0,94187.0,0.21398917]
[1746524409194,0.7559943,94188.0,94187.0,0.24558917]
[1746524410488,0.7559943,94188.0,94187.0,0.03319257]
[1746524412092,0.6379943,94188.0,94187.0,0.03319257]
[1746524412294,0.6379943,94188.0,94187.0,0.24558917]
[1746524424106,0.0648,94188.0,94187.0,0.24558917]
[1746524424295,0.0319,94188.0,94187.0,0.24558917]
[1746524424496,0.0319,94188.0,94187.0,0.27818917]
[1746524426402,0.0530915,94201.0,94187.0,0.06579257]
[1746524426702,0.2654585,94204.0,94203.0,0.2123605]
[1746524426899,0.2123687,94204.0,94203.0,0.2123605]
[1746524428096,0.2440687,94204.0,94203.0,0.2123605]
[1746524428400,0.2654866,94192.0,94191.0,0.2123788]
[1746524428604,0.2123898,94192.0,94191.0,0.2123788]
[1746524429000,0.2123898,94192.0,94191.0,1.6623788]
[1746524432302,0.2123921,94189.0,94185.0,0.06396526]
[1746524432492,0.2123943,94188.0,94187.0,0.21398567]
[1746524433201,0.2123943,94188.0,94187.0,0.00159257]
[1746524433798,0.2123943,94188.0,94187.0,0.21398917]
[1746524438905,0.0304,94189.0,94188.0,0.2123943]
[1746524439102,0.0304,94189.0,94188.0,0.2445943]
[1746524439302,0.0304,94189.0,94188.0,0.2757943]
[1746524439505,0.0329,94190.0,94189.0,0.2123921]
[1746524439704,0.2452898,94190.0,94189.0,0.2741921]
[1746524440112,0.2452898,94190.0,94189.0,1.7241921]
[1746524441612,0.2452898,94190.0,94189.0,0.2741921]
[1746524443015,0.2452898,94190.0,94189.0,0.2435921]
[1746524448213,0.2452898,94190.0,94189.0,0.2753921]
[1746524452721,0.2452898,94190.0,94189.0,0.2435921]
[1746524453415,0.2755898,94190.0,94189.0,0.2435921]
[1746524463518,0.2755898,94190.0,94189.0,1.6935921]
[1746524482328,0.0632,94190.0,94189.0,1.6935921]
[1746524482528,0.0632,94190.0,94189.0,1.7249921]
[1746524484938,0.0632,94190.0,94189.0,0.2749921]
[1746524488139,0.2755898,94190.0,94189.0,0.2749921]
[1746524488844,0.2755898,94190.0,94189.0,0.2435921]
[1746524489547,0.0632,94190.0,94189.0,0.2435921]
[1746524525064,0.0632,94190.0,94189.0,0.2748921]
[1746524528968,0.0632,94190.0,94189.0,0.2435921]
[1746524530973,0.2755898,94190.0,94189.0,0.2435921]
[1746524535468,0.2755898,94190.0,94189.0,0.2123921]
[1746524537468,0.2123921,94189.0,94188.0,0.3608]
[1746524537667,0.2123921,94189.0,94188.0,0.5731943]
[1746524537872,0.2758921,94189.0,94188.0,0.5731943]
[1746524538173,0.3938921,94189.0,94188.0,0.5731943]
[1746524540579,0.3938921,94189.0,94188.0,0.3608]
[1746524540774,0.3938921,94189.0,94188.0,0.5731943]
[1746524541676,0.3938921,94189.0,94188.0,0.3608]
[1746524543479,0.3938921,94189.0,94188.0,0.5731943]
[1746524544279,0.3938921,94189.0,94188.0,0.3608]
[1746524546082,0.2123943,94188.0,94187.0,0.21398837]
[1746524546881,0.2762943,94188.0,94187.0,0.21398837]
[1746524547182,0.3942943,94188.0,94187.0,0.21398837]
[1746524547369,0.3942943,94188.0,94187.0,0.00159257]
[1746524551918,0.7550943,94188.0,94187.0,0.00159257]
[1746524564805,0.7550943,94188.0,94187.0,0.21398917]
[1746524565388,0.7550943,94188.0,94187.0,0.00159257]
[1746524566295,0.7550943,94188.0,94187.0,0.24628917]
[1746524566987,0.8190543,94188.0,94187.0,0.24628917]
[1746524569095,0.7010543,94188.0,94187.0,0.24628917]
[1746524570296,0.7010543,94188.0,94187.0,0.03389257]
[1746524571391,0.7010543,94188.0,94187.0,0.24628917]
[1746524575300,0.7010543,94188.0,94187.0,0.03389257]
[1746524575601,0.7010543,94188.0,94187.0,0.24628917]
[1746524576401,0.7010543,94188.0,94187.0,0.03389257]
[1746524576599,0.7010543,94188.0,94187.0,0.24628917]
[1746524577604,0.7010543,94188.0,94187.0,0.03389257]
[1746524577799,0.7010543,94188.0,94187.0,0.24628917]
[1746524578799,0.7010543,94188.0,94187.0,0.03389257]
[1746524579606,0.7010543,94188.0,94187.0,0.24628917]
[1746524581312,0.3402543,94188.0,94187.0,0.24628917]
[1746524581605,0.7010543,94188.0,94187.0,0.03389257]
[1746524582110,0.3402543,94188.0,94187.0,0.03389257]
[1746524582308,0.7010543,94188.0,94187.0,0.24628917]
[1746524583404,0.3402543,94188.0,94187.0,0.24628917]
[1746524583706,0.7010543,94188.0,94187.0,0.24628917]
[1746524584308,0.3402543,94188.0,94187.0,0.24628917]
[1746524584613,0.7010543,94188.0,94187.0,0.24628917]
[1746524588102,0.7010543,94188.0,94187.0,0.03389257]
[1746524588307,0.7010543,94188.0,94187.0,0.24628917]
[1746524588503,0.7010543,94188.0,94187.0,0.03389257]
[1746524588699,0.7010543,94188.0,94187.0,0.24628917]
[1746524589502,0.3402543,94188.0,94187.0,0.24628917]
[1746524589698,0.7010543,94188.0,94187.0,0.24628917]
[1746524594907,0.7010543,94188.0,94187.0,0.03389257]
[1746524595114,0.7010543,94188.0,94187.0,0.24628917]
[1746524595313,0.7010543,94188.0,94187.0,0.03389257]
[1746524595702,0.7010543,94188.0,94187.0,0.00159257]
[1746524595904,0.7010543,94188.0,94187.0,0.21398917]
[1746524596213,0.7010543,94188.0,94187.0,0.00159257]
[1746524596415,0.7010543,94188.0,94187.0,0.21398917]
[1746524597010,0.7010543,94188.0,94187.0,0.00159257]
[1746524598009,0.7010543,94188.0,94187.0,0.21398917]
[1746524598908,0.7010543,94188.0,94187.0,0.00159257]
[1746524603419,0.7010543,94188.0,94187.0,0.21398917]
[1746524604417,0.7010543,94188.0,94187.0,0.00159257]
[1746524619034,0.3402543,94188.0,94187.0,0.00159257]
[1746524619231,0.7010543,94188.0,94187.0,0.00159257]
[1746524621023,0.3402543,94188.0,94187.0,0.00159257]
[1746524621222,0.7010543,94188.0,94187.0,0.00159257]
[1746524627826,0.7010543,94188.0,94187.0,0.03269257]
[1746524649450,0.7010543,94188.0,94187.0,0.00159257]
[1746524650143,0.8190543,94188.0,94187.0,0.00159257]
[1746524651138,0.7010543,94188.0,94187.0,0.00159257]
[1746524662753,0.7012943,94188.0,94187.0,0.00159257]
[1746524683473,0.6370943,94188.0,94187.0,0.00159257]
[1746524683771,0.7012943,94188.0,94187.0,0.00159257]
[1746524694167,0.6370943,94188.0,94187.0,0.00159257]
[1746524694367,0.7026143,94188.0,94187.0,0.00159257]
[1746524700381,0.3104143,94188.0,94187.0,0.00159257]
[1746524700678,0.3104143,94188.0,94187.0,0.24658917]
[1746524708385,0.3104143,94188.0,94187.0,0.03419257]
[1746524708681,0.3104143,94188.0,94187.0,0.00159257]
[1746524708878,0.3429143,94188.0,94187.0,0.00159257]
[1746524709683,0.3429143,94188.0,94187.0,0.21398917]
[1746524710273,0.3429143,94188.0,94187.0,0.00159257]
[1746524710480,0.3429143,94188.0,94187.0,0.21398917]
[1746524712787,0.3104143,94188.0,94187.0,0.21398917]
[1746524714886,0.3104143,94188.0,94187.0,0.24538917]
[1746524716886,0.3104143,94188.0,94187.0,0.03299257]
[1746524717192,0.3104143,94188.0,94187.0,0.21398917]
[1746524718292,0.2448943,94188.0,94187.0,0.21398917]
[1746524718480,0.2448943,94188.0,94187.0,0.24458917]
[1746524722595,0.2448943,94188.0,94187.0,0.21398917]
[1746524727394,0.2448943,94188.0,94187.0,0.24688917]
[1746524750606,0.2777943,94188.0,94187.0,0.27728917]
[1746524751006,0.2777943,94188.0,94187.0,0.24438917]
[1746524765017,0.2777943,94188.0,94187.0,0.21398917]
[1746524765412,0.2777943,94188.0,94187.0,0.00159257]
[1746524766415,0.2777943,94188.0,94187.0,0.21398917]
[1746524767916,0.2777943,94188.0,94187.0,0.00159257]
[1746524769216,0.3957943,94188.0,94187.0,0.00159257]
[1746524781226,0.4957943,94188.0,94187.0,0.00159257]
[1746524784818,0.3957943,94188.0,94187.0,0.00159257]
[1746524785022,0.4957943,94188.0,94187.0,0.00159257]
[1746524790331,0.4957943,94188.0,94187.0,7e-08]
[1746524806439,0.3957943,94188.0,94187.0,7e-08]
[1746524807048,0.2777943,94188.0,94187.0,7e-08]
[1746524808151,0.2777943,94188.0,94187.0,0.03030007]
[1746524809049,0.2448943,94188.0,94187.0,0.03030007]
[1746524810048,0.3628943,94188.0,94187.0,0.03030007]
[1746524810549,0.3303943,94188.0,94187.0,0.03030007]
[1746524811254,0.2123943,94188.0,94187.0,0.03030007]
[1746524813643,0.2448943,94188.0,94187.0,0.03030007]
[1746524822053,0.2758943,94188.0,94187.0,0.03030007]
[1746524828166,0.2448943,94188.0,94187.0,0.24269667]
[1746524828462,0.2448943,94188.0,94187.0,0.03030007]
[1746524829248,0.2761943,94188.0,94187.0,0.03030007]
[1746524834058,0.2761943,94188.0,94187.0,0.24269667]
[1746524834261,0.0325,94188.0,94187.0,0.24269667]
[1746524834762,0.2448943,94188.0,94187.0,0.24269667]
[1746524835458,0.0325,94188.0,94187.0,0.24269667]
[1746524835663,0.3608,94189.0,94188.0,0.2123943]
[1746524835862,0.3608,94189.0,94188.0,0.2779943]
[1746524839067,0.0314,94190.0,94189.0,0.2123921]
[1746524839262,0.0314,94190.0,94189.0,0.2761921]
[1746524841670,0.0644,94190.0,94189.0,0.2761921]
[1746524843068,0.0314,94190.0,94189.0,0.6369921]
[1746524843372,0.0654,94191.0,94190.0,0.2123898]
[1746524843573,0.0654,94191.0,94190.0,0.3075898]
[1746524844077,0.0307,94198.0,94197.0,0.212374]
[1746524845275,0.0307,94198.0,94197.0,0.307474]
[1746524846577,0.0627,94198.0,94197.0,0.307474]
[1746524847174,0.0307,94198.0,94197.0,0.307474]
[1746524848868,0.0621,94198.0,94197.0,0.307474]
[1746524849269,0.2744718,94198.0,94197.0,0.307474]
[1746524849870,0.2744718,94198.0,94197.0,0.277074]
[1746524850070,0.2744718,94198.0,94197.0,0.0647]
[1746524850277,0.212386,94193.0,94192.0,0.2123815]
[1746524850579,0.2654759,94195.0,94194.0,0.2123808]
[1746524851481,0.2123808,94195.0,94194.0,0.2123808]
[1746524853183,0.2755808,94195.0,94194.0,0.2123808]
[1746524862784,0.0632,94195.0,94194.0,0.2123808]
[1746524864498,0.0632,94195.0,94194.0,0.2423808]
[1746524866586,0.2755785,94195.0,94194.0,0.2123808]
[1746524867691,0.2123853,94192.0,94191.0,1.6623875]
[1746524867891,0.2123853,94192.0,94191.0,1.6934875]
[1746524868486,0.2751853,94192.0,94191.0,1.6934875]
[1746524869385,0.2751853,94192.0,94191.0,0.2434875]
[1746524871481,0.2751853,94192.0,94191.0,0.2123875]
[1746524876799,0.2751853,94192.0,94191.0,0.2427875]
[1746524877793,0.0628,94192.0,94191.0,0.2427875]
[1746524880803,0.06536,94201.0,94200.0,0.2123673]
[1746524881192,0.0332,94204.0,94201.0,0.212365]
[1746524881406,0.06564,94211.0,94201.0,0.212365]
[1746524881605,0.06564,94211.0,94201.0,0.318521]
[1746524881804,0.06564,94211.0,94201.0,1.768521]
[1746524882197,0.0319,94210.0,94201.0,1.768521]
[1746524882599,0.0319,94210.0,94201.0,1.801721]
[1746524885106,0.0319,94210.0,94209.0,0.212347]
[1746524885306,0.0638,94210.0,94209.0,0.212347]
[1746524885905,0.2761447,94210.0,94209.0,0.277147]
[1746524886808,0.2761447,94210.0,94209.0,0.28784932]
[1746524887305,0.0638,94210.0,94209.0,0.28784932]
[1746524890908,0.0319,94210.0,94209.0,0.28784932]
[1746524891107,0.0322,94219.0,94218.0,0.2123267]
[1746524891310,0.065,94219.0,94218.0,0.2123267]
[1746524891805,0.065,94219.0,94218.0,0.2433267]
[1746524892306,0.2773244,94219.0,94218.0,0.2433267]
[1746524895209,0.065,94219.0,94218.0,0.2433267]
[1746524895914,0.2773244,94219.0,94218.0,0.2433267]
[1746524898309,0.065,94219.0,94218.0,0.2433267]
[1746524900619,0.2773244,94219.0,94218.0,0.2433267]
[1746524901218,0.065,94219.0,94218.0,0.2433267]
[1746524904519,0.2773244,94219.0,94218.0,0.2433267]
[1746524906922,0.065,94219.0,94218.0,0.2433267]
[1746524908320,0.2773244,94219.0,94218.0,0.2433267]
[1746524910121,0.065,94219.0,94218.0,0.2433267]
[1746524911318,0.2773244,94219.0,94218.0,0.2433267]
[1746524912718,0.2773244,94219.0,94218.0,0.2123267]
[1746524914712,0.2773244,94219.0,94218.0,0.2443267]
[1746524915416,0.2773244,94219.0,94218.0,0.2123267]
[1746524916124,0.3953244,94219.0,94218.0,0.2123267]
[1746524917232,0.2773244,94219.0,94218.0,0.2443267]
[1746524919827,0.065,94219.0,94218.0,0.2443267]
[1746524940246,0.1508,94219.0,94218.0,0.2753267]
[1746524941148,0.0328,94219.0,94218.0,0.2753267]
[1746524941344,0.0328,94219.0,94218.0,0.6361267]
[1746524941551,0.24223576,94223.0,94222.0,0.2123177]
[1746524942444,0.24223576,94223.0,94222.0,0.2752177]
[1746524943152,0.36023576,94223.0,94222.0,0.2752177]
[1746524947550,0.36023576,94223.0,94222.0,1.7252177]
[1746524951455,0.36023576,94223.0,94222.0,2.0860177]
[1746524953159,0.24223576,94223.0,94222.0,2.0860177]
[1746524958064,0.36023576,94223.0,94222.0,2.0860177]
[1746524964070,0.36023576,94223.0,94222.0,2.0231177]
[1746524964271,0.36023576,94223.0,94222.0,1.6623177]
[1746524964469,0.2654058,94221.0,94220.0,0.212318]
[1746524964670,0.2123211,94221.0,94220.0,0.2123199]
[1746524964874,0.0643,94222.0,94221.0,0.2123199]
[1746524965171,0.2444177,94222.0,94221.0,0.2123199]
[1746524965472,0.0321,94222.0,94221.0,0.2123199]
[1746524965972,0.2444177,94222.0,94221.0,0.2123199]
[1746524966171,0.3624177,94222.0,94221.0,0.2123199]
[1746524966368,0.1501,94222.0,94221.0,0.2123199]
[1746524966670,0.3624177,94222.0,94221.0,0.2123199]
[1746524967376,0.1501,94222.0,94221.0,0.2123199]
[1746524972483,0.1501,94222.0,94221.0,0.2723199]
[1746524972683,0.1501,94222.0,94221.0,0.2123199]
[1746524973192,0.1501,94222.0,94221.0,0.2431199]
[1746524973381,0.1501,94222.0,94221.0,0.2831199]
[1746524975688,0.1501,94222.0,94221.0,0.6439199]
[1746524979591,0.1816,94222.0,94221.0,0.6439199]
[1746524980695,0.1816,94222.0,94221.0,2.0539199]
[1746524982397,0.1816,94222.0,94221.0,1.6931199]
[1746524982595,0.1816,94222.0,94221.0,2.0539199]
[1746524986393,0.1816,94222.0,94221.0,2.0231199]
[1746524990300,0.1816,94222.0,94221.0,2.0564199]
[1746524996499,0.1816,94222.0,94221.0,1.6956199]
[1746524996701,0.1816,94222.0,94221.0,2.0564199]
[1746525005399,0.1816,94222.0,94221.0,1.6956199]
[1746525005600,0.1816,94222.0,94221.0,2.0564199]
[1746525006509,0.1816,94222.0,94221.0,1.6956199]
[1746525006709,0.1816,94222.0,94221.0,2.0564199]
[1746525008610,0.1816,94222.0,94221.0,0.6064199]
[1746525008812,0.3939177,94222.0,94221.0,0.3608]
[1746525009003,0.3939177,94222.0,94221.0,0.5731199]
[1746525010914,0.2123312,94216.0,94215.0,1.45777912]
[1746525011104,0.3303312,94216.0,94215.0,1.67011252]
[1746525011302,0.118,94216.0,94215.0,0.22011252]
[1746525011598,0.3303312,94216.0,94215.0,0.22011252]
[1746525011798,0.1796,94216.0,94215.0,0.22011252]
[1746525012001,0.1796,94216.0,94215.0,0.2123334]
[1746525022216,0.3919312,94216.0,94215.0,0.2123334]
[1746525022415,0.1796,94216.0,94215.0,0.2123334]
[1746525025120,0.3919312,94216.0,94215.0,0.2123334]
[1746525027217,0.3919312,94216.0,94215.0,1.6623334]
[1746525030423,0.2123357,94214.0,94213.0,0.3608]
[1746525030724,0.2123447,94210.0,94207.0,0.0530873]
[1746525030923,0.2123447,94210.0,94209.0,0.212347]
[1746525031223,0.3303447,94210.0,94209.0,0.212347]
[1746525031922,0.3945447,94210.0,94209.0,0.212347]
[1746525032924,0.3945447,94210.0,94209.0,0.22304688]
[1746525039931,0.212356,94205.0,94204.0,0.3608]
[1746525040225,0.2123605,94203.0,94202.0,0.21395048]
[1746525041133,0.3917605,94203.0,94202.0,0.00159218]
[1746525049739,0.3917605,94203.0,94202.0,0.21395488]
[1746525054546,0.3917605,94203.0,94202.0,0.00159218]
[1746525054739,0.3917605,94203.0,94202.0,0.21395488]
[1746525060256,0.3917605,94203.0,94202.0,0.00159218]
[1746525075872,0.3917605,94203.0,94202.0,0.24395488]
[1746525078576,0.3917605,94203.0,94202.0,0.03159218]
[1746525079682,0.3917605,94203.0,94202.0,0.24395488]
[1746525106796,0.3613605,94203.0,94202.0,0.24395488]
[1746525107090,0.031,94203.0,94202.0,0.24395488]
[1746525107393,0.2455492,94208.0,94207.0,0.2123515]
[1746525107783,0.0332,94208.0,94207.0,0.2123515]
[1746525107988,0.2455492,94208.0,94207.0,0.2756515]
[1746525108185,0.3635492,94208.0,94207.0,0.2756515]
[1746525117401,0.1512,94208.0,94207.0,0.2756515]
[1746525119490,0.118,94208.0,94207.0,0.38179949]
[1746525120101,0.118,94208.0,94207.0,1.83179949]
[1746525120301,0.03,94217.0,94216.0,0.2123312]
[1746525120488,0.03,94217.0,94216.0,0.5731312]
[1746525121193,0.03,94217.0,94216.0,0.6356312]
[1746525121194,0.148,94217.0,94216.0,0.6356312]
[1746525125905,0.1798,94217.0,94216.0,0.6356312]
[1746525128405,0.148,94217.0,94216.0,0.6356312]
[1746525129200,0.03,94217.0,94216.0,0.6356312]
[1746525135111,0.148,94217.0,94216.0,0.6356312]
[1746525135313,0.148,94217.0,94216.0,0.2748312]
[1746525135617,0.148,94217.0,94216.0,0.6356312]
[1746525137411,0.3603289,94217.0,94216.0,0.6046312]
[1746525137610,0.3909289,94217.0,94216.0,0.6046312]
[1746525138117,0.1786,94217.0,94216.0,0.6046312]
[1746525140518,0.1786,94217.0,94216.0,0.2438312]
[1746525141015,0.1786,94217.0,94216.0,0.6046312]
[1746525141219,0.3909289,94217.0,94216.0,0.6046312]
[1746525143319,0.1786,94217.0,94216.0,0.6046312]
[1746525144221,0.3909289,94217.0,94216.0,0.6046312]
[1746525145711,0.1786,94217.0,94216.0,0.6046312]
[1746525146217,0.3909289,94217.0,94216.0,0.6046312]
[1746525146918,0.3909289,94217.0,94216.0,0.2438312]
[1746525147113,0.3909289,94217.0,94216.0,0.6046312]
[1746525148222,0.1786,94217.0,94216.0,0.6046312]
[1746525149118,0.3909289,94217.0,94216.0,0.6046312]
[1746525158249,0.1786,94217.0,94216.0,0.6046312]
[1746525159138,0.1786,94217.0,94216.0,0.6376312]
[1746525165644,0.118,94217.0,94216.0,0.6376312]
[1746525165945,0.0015,94240.0,94235.0,0.2122884]
[1746525166137,0.0302,94239.0,94235.0,0.5730884]
[1746525166337,0.0302,94239.0,94235.0,2.0230884]
[1746525166544,0.0302,94239.0,94235.0,2.0847884]
[1746525167148,0.0302,94239.0,94235.0,2.09543549]
[1746525167543,0.0302,94239.0,94235.0,2.1032257]
[1746525167845,0.0302,94239.0,94235.0,2.09543549]
[1746525168242,0.16384,94236.0,94235.0,2.09543549]
[1746525169847,0.16384,94236.0,94235.0,2.10543549]
[1746525170147,0.16384,94236.0,94235.0,2.09543549]
[1746525170850,0.16384,94236.0,94235.0,2.10543549]
[1746525171946,0.16384,94236.0,94235.0,2.11338814]
[1746525175953,0.119,94236.0,94235.0,2.11338814]
[1746525179649,0.0885964,94236.0,94235.0,2.11338814]
[1746525180448,0.0885964,94236.0,94235.0,2.61338814]
[1746525181959,0.0254658,94236.0,94235.0,2.61338814]
[1746525189551,0.0254658,94236.0,94235.0,2.25258814]
[1746525189752,0.0254658,94236.0,94235.0,2.97418814]
[1746525196061,0.0254658,94236.0,94235.0,2.94328814]
[1746525200570,0.0254658,94236.0,94235.0,2.97628814]
[1746525202168,0.0622,94239.0,94235.0,2.76399974]
[1746525202371,0.032,94255.0,94254.0,0.2122456]
[1746525203067,0.15,94255.0,94254.0,0.2122456]
[1746525205273,0.15,94255.0,94254.0,0.2442456]
[1746525207474,0.15,94255.0,94254.0,0.2122456]
[1746525209969,0.15,94255.0,94254.0,0.5730456]
[1746525219882,0.15,94255.0,94254.0,0.6062456]
[1746525229784,0.118,94255.0,94254.0,0.6062456]
[1746525229981,0.118,94255.0,94254.0,0.6803456]
[1746525230985,0.118,94255.0,94254.0,2.1303456]
[1746525233491,0.118,94255.0,94254.0,2.1203456]
[1746525234282,0.118,94255.0,94254.0,0.6703456]
[1746525242601,0.1512,94255.0,94254.0,0.6703456]
[1746525244893,0.1512,94255.0,94254.0,0.6393456]
[1746525249101,0.1512,94255.0,94254.0,0.6062456]
[1746525250003,0.1815,94255.0,94254.0,0.6062456]
[1746525250201,0.1815,94255.0,94254.0,0.5730456]
[1746525250804,0.1815,94255.0,94254.0,2.0230456]
[1746525251205,0.3937433,94255.0,94254.0,2.0230456]
[1746525251513,0.1815,94255.0,94254.0,2.0230456]
[1746525251707,0.3937433,94255.0,94254.0,2.0538456]
[1746525252205,0.1815,94255.0,94254.0,2.0538456]
[1746525252407,0.1815,94255.0,94254.0,2.0866456]
[1746525252710,0.1815,94255.0,94254.0,0.6366456]
[1746525256801,0.1815,94255.0,94254.0,0.6566456]
[1746525257000,0.1815,94255.0,94254.0,0.6366456]
[1746525257206,0.1483,94255.0,94254.0,0.6366456]
[1746525261311,0.1483,94255.0,94254.0,0.2758456]
[1746525261499,0.1483,94255.0,94254.0,0.6366456]
[1746525270416,0.1483,94255.0,94254.0,0.2758456]
[1746525270610,0.1483,94255.0,94254.0,0.6366456]
[1746525275419,0.1483,94255.0,94254.0,0.6566456]
[1746525278912,0.1483,94255.0,94254.0,2.1066456]
[1746525280225,0.118,94255.0,94254.0,2.1066456]
[1746525282529,0.118,94255.0,94254.0,2.0866456]
[1746525283731,0.118,94255.0,94254.0,0.6366456]
[1746525286022,0.1481,94255.0,94254.0,0.6366456]
[1746525286229,0.1481,94255.0,94254.0,2.0866456]
[1746525289530,0.1481,94255.0,94254.0,2.0966456]
[1746525291433,0.1481,94255.0,94254.0,2.0866456]
[1746525291939,0.118,94255.0,94254.0,2.0866456]
[1746525295443,0.118,94255.0,94254.0,2.0966456]
[1746525298640,0.1493,94255.0,94254.0,2.0966456]
[1746525301542,0.03580037,94255.0,94254.0,2.0966456]
[1746525301747,0.03136747,94274.0,94273.0,0.2122028]
[1746525301948,0.03136747,94274.0,94273.0,0.5730028]
[1746525302143,0.14936747,94274.0,94273.0,0.5730028]
[1746525302354,0.14936747,94274.0,94273.0,2.0230028]
[1746525304546,0.14936747,94274.0,94273.0,2.03348604]
[1746525304949,0.18056747,94274.0,94273.0,2.03348604]
[1746525306042,0.18056747,94274.0,94273.0,0.58348604]
[1746525306948,0.21256747,94274.0,94273.0,0.58348604]
[1746525307654,0.42476807,94274.0,94273.0,0.58348604]